Cogmind - Beta 9.4 @@@ ROGUE MODE // 2020.01.11 @ 21:59:51 // Winter2019/RPGLIKE Player: Terminus Result: Destroyed by G-47 Trooper with Particle Gun Performance ------------- Evolutions (2) 1000 Regions Visited (5) 1000 Robots Destroyed (62) 310 Value Destroyed (1473) 1473 Prototype IDs (0) 0 Alien Tech Used (0) 0 Bonus (-126) -126 TOTAL SCORE: 3657 Bonus ------- Follower Combat Kills 56 Friendly Fire -182 Cogmind --------- Core Integrity 0/700 Matter 184/300 Energy 290/290 System Corruption 0% Temperature Cool (18) Movement Walking (150) Ox1 Location -8/Materials Parts ------- > --- POWER (1) -------- Improved Deuterium Engine > --- PROPULSION (2) --- Aluminum Leg Aluminum Leg > --- UTILITY (6) ------ Improved Heat Sink Improved Heat Sink Advanced Signal Interpreter Advanced Targeting Computer Armor Integrity Analyzer Hacking Suite > --- WEAPON (2) ------- Heavy Ion Cannon Rocket Launcher > --- INVENTORY (4) ---- Hacking Suite System Shield Heavy Ion Cannon Ripper Peak State ------------ > --- POWER ------------ Improved Deuterium Engine > --- PROPULSION ------- Aluminum Leg Aluminum Leg > --- UTILITY ---------- Improved Heat Sink Improved Heat Sink Advanced Signal Interpreter Advanced Targeting Computer Armor Integrity Analyzer Hacking Suite > --- WEAPON ----------- Heavy Ion Cannon Heavy Ion Cannon > --- INVENTORY -------- Hacking Suite System Shield Rocket Launcher Ripper [Rating: 32] Favorites ----------- Power Ion Engine Engine Ion Engine Propulsion Aluminum Leg Leg Aluminum Leg Utility Improved Heat Sink Device Improved Heat Sink Processor Targeting Computer Hackware Hacking Suite Weapon EM Pulse Gun Energy Gun EM Pulse Gun Energy Cannon Heavy Ion Cannon Ballistic Gun Light Assault Rifle Launcher Rocket Launcher Build | -11 -10 -10 -10 -9 -8 ------- Run | Scr Mat Min Exi Min Mat Slots Evolved 7 | 4 1 1 . 1 . Power . | . . . . . . Propulsion 1 | 1 . . . . . Utility 5 | 2 1 1 . 1 . Weapon 1 | 1 . . . . . Parts Attached 31 | 5 11 2 . 2 11 Power 2 | 1 . . . . 1 Engine 2 | 1 . . . . 1 Core . | . . . . . . Reactor . | . . . . . . Propulsion 3 | 2 . 1 . . . Treads . | . . . . . . Leg 3 | 2 . 1 . . . Wheel . | . . . . . . Hover . | . . . . . . Flight . | . . . . . . Utility 10 | . 5 1 . 1 3 Device 4 | . 3 1 . . . Storage . | . . . . . . Processor 5 | . 1 . . 1 3 Hackware 1 | . 1 . . . . Protection . | . . . . . . Artifact . | . . . . . . Weapon 16 | 2 6 . . 1 7 Energy Gun 6 | . 6 . . . . Energy Cannon 5 | . . . . 1 4 Ballistic Gun 2 | 2 . . . . . Ballistic Cannon . | . . . . . . Launcher 3 | . . . . . 3 Special Weapon . | . . . . . . Impact Weapon . | . . . . . . Slashing Weapon . | . . . . . . Piercing Weapon . | . . . . . . Special Melee Weapon . | . . . . . . Unidentified Prototypes . | . . . . . . Parts Lost . | . . . . . . Power . | . . . . . . Propulsion . | . . . . . . Utility . | . . . . . . Weapon . | . . . . . . Highest Loss Streak . | . . . . . . Average Slot Usage (%) 90 | . 88 90 90 81 99 Engine 10 | . 11 10 10 9 9 Leg 20 | . 24 20 20 18 18 Device 15 | . 9 20 20 18 18 Processor 14 | . 9 10 10 9 26 Hackware 8 | . 7 10 10 9 9 Energy Gun 12 | . 17 20 20 12 . Energy Cannon 5 | . . . . 5 17 Ballistic Gun 2 | . 6 . . . . Naked Turns . | . . . . . . Heaviest Build 26 | 7 11 11 11 13 26 Greatest Support 20 | 20 20 20 20 20 20 Greatest Overweight (x) 1 | . . . . . 1 Average Overweight (x) . | . . . . . . Largest Inventory Capacity 4 | 1 1 2 2 2 4 Average Capacity 1 | . 1 1 2 2 3 Most Carried 4 | 1 1 2 2 2 4 Average Carried 1 | . 1 1 2 1 3 Final Capacity 4 | 1 1 2 2 2 4 Final Carried 4 | 1 1 2 2 2 4 Class Distribution -------------------- 45% | Mutant 28% | Scavenger-Mutant 25% | Hacker-Mutant Dominant Class ---------------- Mutant | -10/Materials Mutant | -10/Mines Scavenger-Mutant | -10/Exiles Scavenger-Mutant | -9/Mines Hacker-Mutant | -8/Materials Resources | -11 -10 -10 -10 -9 -8 ----------- Run | Scr Mat Min Exi Min Mat Matter Collected 525 | 252 173 20 . 20 60 Remotely . | . . . . . . Salvage Created 2117 | . 1078 354 . 125 560 Parts 131 | . 62 26 . 6 37 Haulers Intercepted 3 | . 2 . . . 1 Recyclers Shooed 1 | . 1 . . . . Parts Field Recycled . | . . . . . . Retrieved Matter . | . . . . . . Parts Self-Destructed . | . . . . . . Prevented . | . . . . . . Kills | -11 -10 -10 -10 -9 -8 ------- Run | Scr Mat Min Exi Min Mat Combat Hostiles Destroyed 39 | . 18 7 . 2 12 Guns 24 | . 17 6 . 1 . Cannons 9 | . . . . 1 8 AOE 3 | . . . . . 3 Classes Destroyed 12 | . 7 1 . 2 2 Worker 7 | . 2 2 . . 3 Builder 2 | . . 2 . . . Tunneler 1 | . . . . 1 . Hauler 3 | . 2 . . . 1 Recycler 1 | . 1 . . . . Operator 4 | . 3 . . . 1 Watcher 4 | . 2 . . . 2 Swarmer 10 | . 3 3 . 1 3 Grunt 24 | . 15 4 . 1 4 Sentry 3 | . . . . . 3 Hunter 2 | . . . . . 2 Assembled 1 | . . . . 1 . Best Kill Streak 6 | . 4 5 . 1 6 Combat Bots Only 4 | . 2 3 . 1 4 Max Kills in Single Turn 2 | . 2 2 . 1 2 Gunslinging 1 | . 1 1 . . . Exploded 2 | . . . . . 2 Melee . | . . . . . . Uniques/NPCs Destroyed . | . . . . . . Combat | -11 -10 -10 -10 -9 -8 -------- Run | Scr Mat Min Exi Min Mat Damage Taken 2022 | . 731 189 . 89 1013 Core 1642 | . 587 157 . 69 829 Absorbed by Shields . | . . . . . . Redirected to Core 1262 | . 453 109 . 59 641 Core Remaining (%) 68 | 100 . . . 36 . Volleys Fired 158 | 1 90 17 . 9 41 Largest 2 | 2 2 2 . 2 2 Hottest 130 | 40 90 80 . 96 130 Shots Fired 307 | 2 177 34 . 18 76 Gun 224 | 2 177 34 . 11 . Cannon 77 | . . . . 7 70 Launcher 6 | . . . . . 6 Special . | . . . . . . Kinetic 65 | 2 63 . . . . Thermal 166 | . 96 . . . 70 Explosive 6 | . . . . . 6 Electromagnetic 70 | . 18 34 . 18 . Robot Hit Streak 24 | 2 24 8 . 6 11 Robot Miss Streak 4 | . 4 2 . 1 3 Penetration Max . | . . . . . . Secondary Targets 5 | . 3 2 . . . Max Gunslinging Chain 1 | . 1 1 . . . Shots Hit Robots 211 | 2 120 22 . 8 59 Core Hits 101 | . 55 14 . 5 27 Critical Hits . | . . . . . . Critical Kills . | . . . . . . Critical Parts Destroyed . | . . . . . . Melee Attacks . | . . . . . . Impact . | . . . . . . Slashing . | . . . . . . Piercing . | . . . . . . Sneak Attacks . | . . . . . . Combat Hostiles . | . . . . . . Follow-up Attacks . | . . . . . . Damage Inflicted 3959 | 18 1313 333 . 136 2159 Guns 1643 | 18 1262 291 . 72 . Cannons 1688 | . . . . 42 1646 Explosions 628 | . 51 42 . 22 513 Melee . | . . . . . . Ramming . | . . . . . . Kinetic 315 | 18 297 . . . . Thermal 2643 | . 933 42 . 22 1646 Explosive 513 | . . . . . 513 Electromagnetic 488 | . 83 291 . 114 . Impact . | . . . . . . Slashing . | . . . . . . Piercing . | . . . . . . Highest Corruption . | . . . . . . Average Corruption . | . . . . . . Corruption Purged . | . . . . . . Overload Shots . | . . . . . . Overflow Damage 32 | . 5 . . . 27 Projectiles 11 | . . . . . 11 Explosions 21 | . 5 . . . 16 Melee . | . . . . . . Knockbacks . | . . . . . . Impact . | . . . . . . Kinetic . | . . . . . . Secondary . | . . . . . . Self-Inflicted Damage 37 | . . . . 20 17 Shots 2 | . . . . 1 1 Rammed . | . . . . . . Targets Rammed . | . . . . . . Kicked . | . . . . . . Crushed . | . . . . . . Highest Temperature 12 | . 12 . . . 3 Average Temperature 4 | . 4 . . . 3 Received Heat Transfer 774 | . 354 87 . . 333 Siege Activations . | . . . . . . Robots Corrupted 1 | . . 1 . . . Combat Hostiles 1 | . . 1 . . . Parts Fried 1 | . . 1 . . . Impact Corruptions . | . . . . . . Robots Melted 2 | . 1 . . . 1 Combat Hostiles 2 | . 1 . . . 1 Parts Melted 10 | . 4 . . 1 5 Heat Transferred 4741 | . 2384 50 . 50 2257 Parts Sabotaged . | . . . . . . Parts Stolen . | . . . . . . Parts Stripped . | . . . . . . Power Chain Reactions 3 | . 1 1 . 1 . Missiles Intercepted . | . . . . . . Alert | -11 -10 -10 -10 -9 -8 ------- Run | Scr Mat Min Exi Min Mat Peak Influence 346 | . 346 308 . 136 322 Average Influence 148 | . 152 236 . 81 146 Maximum Alert Level 1 | . 1 1 . . 1 Low Security (%) 70 | 100 66 50 . 100 68 Level 1 29 | . 33 49 . . 31 Level 2 . | . . . . . . Level 3 . | . . . . . . Level 4 . | . . . . . . Level 5 . | . . . . . . High Security . | . . . . . . Max Security . | . . . . . . Squads Dispatched 11 | . 5 . . . 6 Investigation 4 | . 2 . . . 2 Extermination . | . . . . . . Reinforcement 6 | . 3 . . . 3 Assault . | . . . . . . Garrison 1 | . . . . . 1 Intercept . | . . . . . . Construction Impeded . | . . . . . . Haulers Reinforced . | . . . . . . Stealth | -11 -10 -10 -10 -9 -8 --------- Run | Scr Mat Min Exi Min Mat Distress Signals 3 | . 1 . . . 2 Communications Jammed . | . . . . . . Distress Signals . | . . . . . . Times Spotted 65 | . 29 6 . 7 23 Peak Tracking Total 4 | . 3 2 . 4 4 Tactical Retreats 2 | . 2 . . . . Traps | -11 -10 -10 -10 -9 -8 ------- Run | Scr Mat Min Exi Min Mat Traps Triggered 2 | . 1 . . . 1 Indirectly . | . . . . . . Trap Hack Attempts . | . . . . . . Triggered . | . . . . . . Disarmed . | . . . . . . Reprogrammed . | . . . . . . Reused . | . . . . . . Traps Extracted . | . . . . . . Installed . | . . . . . . Triggered . | . . . . . . Machines | -11 -10 -10 -10 -9 -8 ---------- Run | Scr Mat Min Exi Min Mat Machines Disabled 6 | . . 1 . 2 3 Max in Single Turn 1 | . . 1 . 1 1 Garrison Access 1 | . . . . . 1 Machines Sabotaged . | . . . . . . Garrisons Compromised . | . . . . . . Overloaded Fab Kills . | . . . . . . Fab Network Shutdowns . | . . . . . . Hacking | -11 -10 -10 -10 -9 -8 --------- Run | Scr Mat Min Exi Min Mat Machines Accessed 9 | . 6 . 1 . 2 Terminals 6 | . 5 . . . 1 Fabricators . | . . . . . . Repair Stations . | . . . . . . Recycling Units 1 | . 1 . . . . Scanalyzers . | . . . . . . Garrison Access 1 | . . . . . 1 Total Hacks 30 | . 17 . 4 . 9 Successful 25 | . 16 . 4 . 5 Failed 5 | . 1 . . . 4 Catastrophic . | . . . . . . Database Lockouts . | . . . . . . Manual 21 | . 17 . . . 4 Terminals 23 | . 16 . . . 7 Fabricators . | . . . . . . Repair Stations . | . . . . . . Recycling Units 1 | . 1 . . . . Scanalyzers . | . . . . . . Garrison Access 2 | . . . . . 2 Terminal Hacks 15 | . 8 . 4 . 3 Record 4 | . . . 4 . . Branch Access Points 1 | . . . . . 1 Alert Level 4 | . 3 . . . 1 Zone Layout 6 | . 5 . . . 1 Fabricator Hacks . | . . . . . . Repair Station Hacks . | . . . . . . Recycling Unit Hacks . | . . . . . . Scanalyzer . | . . . . . . Garrison Access Hacks 1 | . . . . . 1 Seal Access 1 | . . . . . 1 Unauthorized Hacks 18 | . 16 . . . 2 Terminals 8 | . 7 . . . 1 Track 2 | . 2 . . . . Botnet 6 | . 5 . . . 1 Fabricators . | . . . . . . Repair Stations . | . . . . . . Recycling Units 1 | . 1 . . . . Tunnel 1 | . 1 . . . . Scanalyzers . | . . . . . . Garrison Access . | . . . . . . Data Cores Recovered . | . . . . . . Used . | . . . . . . Hacking Detections 6 | . 5 . . . 1 Full Trace Events 1 | . 1 . . . . Feedback Events . | . . . . . . Feedback Blocked . | . . . . . . Robot Schematics Acquired . | . . . . . . Robots Built . | . . . . . . Matter . | . . . . . . Time . | . . . . . . Total Robot Build Rating . | . . . . . . Part Schematics Acquired . | . . . . . . Parts Built . | . . . . . . Matter . | . . . . . . Time . | . . . . . . Total Part Build Rating . | . . . . . . Parts Repaired . | . . . . . . Time . | . . . . . . Parts Recycled . | . . . . . . Recycled Matter . | . . . . . . Retrieved Matter . | . . . . . . Retrieved Components . | . . . . . . Parts Scanalyzed . | . . . . . . Part Schematics Acquired . | . . . . . . Parts Damaged . | . . . . . . Bothacking | -11 -10 -10 -10 -9 -8 ------------ Run | Scr Mat Min Exi Min Mat Used RIF Installer . | . . . . . . Robots Hacked . | . . . . . . Non-combat . | . . . . . . Combat . | . . . . . . Robot Hacks Applied . | . . . . . . Relay Couplers Released . | . . . . . . Robots Rewired . | . . . . . . Allies Hacked . | . . . . . . Hacks Repelled . | . . . . . . Allies | -11 -10 -10 -10 -9 -8 -------- Run | Scr Mat Min Exi Min Mat Total Allies 3 | . . . . 3 . Largest Group 3 | . . . . 3 1 Highest-Rated Group 40 | . . . . 40 16 Highest-Rated Ally 16 | . . . . 16 16 Total Orders . | . . . . . . Ally Attacks 45 | . . . . 40 5 Total Damage 351 | . . . . 290 61 Kills 8 | . . . . 7 1 Allies Corrupted . | . . . . . . Allies Melted . | . . . . . . Intel | -11 -10 -10 -10 -9 -8 ------- Run | Scr Mat Min Exi Min Mat Robot Analysis Total . | . . . . . . Derelict Logs Recovered 1 | . . 1 . . . Drone Launches . | . . . . . . Drone Recoveries . | . . . . . . Exploration | -11 -10 -10 -10 -9 -8 ------------- Run | Scr Mat Min Exi Min Mat Turns Passed 2438 | 61 911 334 165 351 616 Spaces Moved 1335 | 45 439 200 137 245 269 Core 12 | 12 . . . . . Treads . | . . . . . . Legs 1323 | 33 439 200 137 245 269 Wheels . | . . . . . . Hover . | . . . . . . Flight . | . . . . . . Fastest Speed 50 | 50 120 120 120 120 120 Average Speed 125 | 101 120 120 120 120 148 Slowest Speed 150 | 120 120 120 120 120 150 Overloaded Moves . | . . . . . . Propulsion Burnouts . | . . . . . . Robots Hopped . | . . . . . . Cave-ins Triggered . | . . . . . . Exploration Rate (%) 35 | 3 63 35 52 32 29 Regions Visited 5 Branch Regions 3 Pre-discovered Areas 3 | . 1 1 1 . . Known Exits Taken . | . . . . . . Unknown Exits Taken 5 | 1 1 1 1 1 . Scrap Searched 2 | . . . . 2 . Spaces Dug . | . . . . . . Terrain Destroyed 60 | . 3 4 . 6 47 Melee . | . . . . . . Projectile 4 | . . . . . 4 AOE 56 | . 3 4 . 6 43 Actions | -11 -10 -10 -10 -9 -8 --------- Run | Scr Mat Min Exi Min Mat Total 1800 | 56 657 260 137 284 406 Wait 218 | 5 102 32 1 23 55 Move 1330 | 44 438 199 136 244 269 Hop . | . . . . . . Pick Up 6 | 1 . 1 . 1 3 Fast Attach 22 | 5 10 1 . 2 4 Attach . | . . . . . . Detach . | . . . . . . Swap 9 | . 1 1 . . 7 Drop 14 | . 6 2 . 2 4 Fire 158 | 1 90 17 . 9 41 Melee . | . . . . . . Ram . | . . . . . . Kick . | . . . . . . Crush . | . . . . . . Escape Stasis . | . . . . . . Rewire . | . . . . . . Trap . | . . . . . . Miscellaneous 43 | . 10 7 . 3 23 Route ------- -11/Scrapyard -10/Materials (discovered 2 exits: [*Mat] / [*Min]) -10/Mines -10/Exiles -9/Mines -8/Materials (discovered 1 exit: Sto) History --------- Turn | Location | Event 1 | -11/Scrapyard | Upgraded with Propulsion slot (x1) 1 | -11/Scrapyard | Upgraded with Utility slot (x2) 1 | -11/Scrapyard | Upgraded with Weapon slot (x1) 10 | -11/Scrapyard | Discovered new exit (range 15) 62 | -11/Scrapyard | Entered Materials 307 | -10/Materials | Build established: Mutant 409 | -10/Materials | Discovered new exit (range 14) 490 | -10/Materials | Core integrity fell below 50% 626 | -10/Materials | Discovered new exit (range 6) 685 | -10/Materials | Reached level 2 694 | -10/Materials | Upgraded with Utility slot (x1) 973 | -10/Materials | Entered Mines 975 | -10/Mines | Reached level 3 979 | -10/Mines | Upgraded with Utility slot (x1) 1003 | -10/Mines | A weapon hastily lodged in a ceiling crevice suddenly fell to the ground 1045 | -10/Mines | Found a hidden stash of uninstalled traps 1137 | -10/Mines | Core integrity fell below 20% 1277 | -10/Mines | Learned location of Zion (-7) 1295 | -10/Mines | Deemed a non-threat by the Exiles lab entrance 1295 | -10/Mines | Discovered new exit (range 5) 1307 | -10/Mines | Entered Exiles 1336 | -10/Exiles | Met 8R-AWN 1358 | -10/Exiles | Met EX-HEX 1400 | -10/Exiles | Met EX-BIN 1413 | -10/Exiles | Met EX-DEC 1462 | -10/Exiles | Discovered new exit (range 10) 1467 | -10/Exiles | Build established: Scavenger-Mutant 1472 | -10/Exiles | Entered Mines 1474 | -9/Mines | Reached level 4 1476 | -9/Mines | Assisted by bots powering up and referring to "LRC-V3" 1480 | -9/Mines | Upgraded with Utility slot (x1) 1518 | -9/Mines | Assembled infested the area 1523 | -9/Mines | Assisted by a Guerilla fighting off Assembled 1793 | -9/Mines | Discovered new exit (range 11) 1823 | -9/Mines | Entered Materials 1823 | -8/Materials | Accompanied by 1 ally 1824 | -8/Materials | Core integrity fell below 50% 1825 | -8/Materials | Reached level 5 2085 | -8/Materials | Core integrity fell below 20% 2114 | -8/Materials | Build established: Hacker-Mutant 2117 | -8/Materials | Reached level 6 2307 | -8/Materials | Identified exit to Storage 2335 | -8/Materials | Garrison activated, responded to threat 2439 | -8/Materials | Destroyed by G-47 Trooper with Particle Gun Last Messages --------------- 02374_ K-01 Serf collects debris. 02375_ R-06 Scavenger collects Lgt. Armor Plating. 02377_ K-01 Serf collects debris. 02378_ Connecting with Garrison Access... >>Seal Access door sealed. 02412_ W-25 Informer sends out distress signal. 02425_ S-10 Pest destroyed. 02425_ Processing Tank disabled. 02425_ S-10 Pest destroyed. 02427_ K-01 Serf collects debris. 02429_ W-25 Informer sends out distress signal. 02430_ R-06 Scavenger collects Flight Unit. 02430_ K-01 Serf collects debris. 02433_ U-05 Engineer builds a Wall. 02433_ R-06 Scavenger collects Lgt. Ion Engine. 02433_ K-01 Serf collects debris. 02435_ U-05 Engineer lays Concrete. 02436_ K-01 Serf collects debris. 02437_ U-05 Engineer lays Concrete. Map ----- +----------------------------------------------------+ | ??????????????????????????????# ! T #####????????? | | ??????????????????????????????# # ########## | | ??????????????????????????????# """ + =% | | ??????????????????????????????# """*# ###### ### | | ??????????????????????????????# """%## ##????# #?? | | ??????????????????????????????# = ## #?????# #?? | | ??????????????????????????#########+## #???### ##? | | ??????????????????????????# = #! #?#### # | | ??????????????????????????#""" # #?# # | | ??????????????????????????#""" + ### | | ??????????????????????????#""" # ##### % | | ??????????????#???????????# ! # #????# =! | | ??????????????# ??????????######### #????# % | | ?????????????## #+#################+###### % | | ????????????? + ! ! ?# | | ????????????? # # """ ####### | | ??????????????k # """ """ """ # """ # # | | ???????????????# # """ """ """ # """ # " # | | ???????????????# g """ """ """ # *%= + [% | | ???????????????# # # # | | ??????????????## # #### !! # # | | ??????????????# g # ! ## ## | | ???????????????# % # ] ## # | | ???????????????# %w ########### # | | ?????????????#### l #?????????# + | | ?????????????# # @ #?????????# # | | ?????????????# #uu !r #???????? # | | ?????????????# """ # "" k ##### # # | | ?????????????# """ # %"""t == #* | | ?????????????# """ "" # !%= ^ ^=!%% = %+! | | ?????????????# G" # [![ T %* ## | | ?????????????# = "" # [""" #### | | ?????????????# # """ *!%#?# | | ?????????????######## ## """ !]#?# | | ????????????????????#### """ !### | | ????????????????????? """ """ # | | ????????????????????? """ + | | ???????????????????? """ # | | ???????????????????############ ######+# | | ??????????????????????????????# # # | | ??????????????????????????????# """ # # | | ?????????????????????########## """ # ## | | ????????????????????? # """ # #? | | ????????????????????? """ """ # + #? | | ????????????????????? """ """ # # #? | | ????????????????????? """ """ + ###+#+## #? | | ??????????????????????????????? ???????????????? | | ????????????????????????????????? ???????????????? | | ?????????????????????????????????????????????????? | | ?????????????????????????????????????????????????? | +----------------------------------------------------+ Best States ------------- Heat Dissipation 65 Energy Generation 16 Energy Capacity 290 Matter Stores 300 Matter Capacity 300 Sight Range 16 Terrain Scan Density 10 Evasion (%) 50 Targeting Accuracy 8 Armor Integrity Analysis 33 Offensive Hacking 15 Defensive Hacking 5 Item Schematics ----------------- None Robot Schematics ------------------ None Fabricated ------------ Nothing Alien Tech Used ----------------- None Achievements -------------- None Challenges ------------ None RPGLIKE | -11 -10 -10 -10 -9 -8 --------- Run | Scr Mat Min Exi Min Mat Levels Raised 5 | . 1 1 . 1 2 XP Earned 11896 | 3000 2520 1425 200 1164 3587 XP Spent 10480 | 2670 1100 1900 . 1700 3110 Upgrades 19 | 7 1 2 . 1 8 Propulsion Slot 1 | 1 . . . . . Utility Slot 5 | 2 1 1 . 1 . Weapon Slot 1 | 1 . . . . . Core Integrity 2 | . . . . . 2 Heat Dissipation 2 | 2 . . . . . Inventory Capacity 4 | 1 . 1 . . 2 Ranged Accuracy 2 | . . . . . 2 Hack Attack % 1 | . . . . . 1 Hack Defense % 1 | . . . . . 1 Protomatter Created 295 | . 73 53 . . 169 Integrity Restored 942 | . 219 159 . 54 510 Core 942 | . 219 159 . 54 510 Protomatter Decayed 72 | . . . . 65 7 Game ------ Seed KineticDiametricConverter Manual? 0 Play Time 00:23:39 Cumulative 1001.7 hours Start 2020.01.11 @ 21:41:09 End 2020.01.11 @ 21:59:51 Sessions 1 Manual Loads 0 Difficulty Rogue Special Mode Winter2019/RPGLIKE Game No. 322 Rogue 322 Adventurer 0 Explorer 0 Win Type - Total 73 Types 14/8/32/4/1/2/12 Lore% 97 Gallery% 95 Achievement% 84 Wizard Run 0 Options --------- ASCII 0 Keyboard 0 Movement Numpad Keybinds 0 Fullscreen 1 Font 18/SmallcapsGlow Map View 76x50 Tactical HUD 1 Map Filters NONE Filters NONE Steam 1 RUN: 75f0786c-a36c-4c92-81b9-386b26ccf9a7